fUSD/lending_fUSD_20250811
["ID","MTS","AMOUNT","RATE_DAILY","PERIOD"]
[378516401,1754890964246,404.14,0.00030136,120]
[378516402,1754890964386,665.43,0.00030136,120]
[378516403,1754890965077,-400.0,0.0001704,5]
[378516404,1754890965168,1423.2,0.00030136,120]
[378516405,1754890967205,300.81317108,0.00030136,120]
[378516406,1754890967447,400.0,0.00030136,120]
[378516407,1754890968157,400.0,0.00030136,120]
[378516408,1754890969223,400.0,0.00030136,120]
[378516409,1754890970043,404.60720682,0.00030136,120]
[378516410,1754890970411,2384.90494563,0.00030136,120]
[378516411,1754890971902,-165.94858889,0.0001704,5]
[378516417,1754890999545,-154.08,0.00016712,2]
[378516418,1754891097618,-22.14,0.00016712,2]
[378516419,1754891097733,-1153.6,0.0001685,2]
[378516420,1754891104372,-529.51,0.00016849,2]
[378516421,1754891104395,-670.49,0.00016849,2]
[378516426,1754891111159,-1192.64,0.0001685,2]
[378516428,1754891118798,-763.58,0.0001685,2]
[378516429,1754891125195,-1032.8,0.0001685,2]
[378516430,1754891131939,-1197.88,0.0001685,2]
[378516431,1754891141411,-1729.51,0.0001685,2]
[378516432,1754891148199,-759.73,0.0001685,2]
[378516433,1754891155471,-999.17141111,0.0001685,2]
[378516434,1754891162950,-100.0,0.00016849,2]
[378516435,1754891163009,-200.0,0.00016849,2]
[378516436,1754891170840,-400.0,0.0001685,2]
[378516437,1754891175618,631.82594341,0.00025999,120]
[378516438,1754891179005,-326.54858907,0.0001685,2]
[378516442,1754891186226,-400.0,0.00016849,2]
[378516443,1754891199991,-206.28,0.00016849,2]
[378516444,1754891200015,-293.72,0.00016849,2]
[378516446,1754891206887,-148.50458079,0.00016849,2]
[378516447,1754891206911,-102.99083842,0.00016849,2]
[378516449,1754891214971,-289.1199128,0.00016849,2]
[378516450,1754891215004,-207.45046466,0.00016849,2]
[378516451,1754891215035,-500.0,0.00016849,2]
[378516452,1754891215065,-500.0,0.00016849,2]
[378516453,1754891215092,-356.12932744,0.00016849,2]
[378516454,1754891215120,-179.51708729,0.00016849,2]
[378516455,1754891215243,-423.32641562,0.00016849,2]
[378516456,1754891221744,-300.0,0.00016849,2]
[378516458,1754891228544,-679.84043374,0.0001685,2]
[378516459,1754891235363,-1409.64,0.0001685,2]
[378516460,1754891242183,-320.06913252,0.0001685,2]
[378516462,1754891271096,-1779.58,0.0001685,2]
[378516470,1754891279171,-202.38393895,0.00016849,2]
[378516472,1754891279240,-174.34353321,0.0001685,2]
[378516475,1754891284770,200.0,0.000259,120]
[378516478,1754891301675,-248.52,0.00016849,2]
[378516479,1754891307339,-51.48,0.00016849,2]
[378516480,1754891307379,-194.08,0.00016849,2]
[378516481,1754891313578,-355.92,0.00016849,2]
[378516482,1754891313603,-98644.08,0.0001685,2]
[378516483,1754891314212,-400.0,0.0001685,2]
[378516484,1754891322669,-706.28,0.0001685,2]
[378516490,1754891413053,-400.0,0.00016849,2]
[378516493,1754891419745,305.13,0.00013699,2]
[378516494,1754891419768,16.77,0.00013699,2]
[378516501,1754891432291,-554.82842438,0.00016849,2]
[378516502,1754891432355,-245.17157562,0.00016849,2]
[378516503,1754891432364,-203.0,0.00016849,2]
[378516504,1754891432373,-917.99062009,0.0001685,2]
[378516505,1754891432384,-1048.6348599,0.0001685,2]
[378516506,1754891432395,-6912.76793345,0.0001685,2]
[378516507,1754891432410,-6112.50951186,0.0001685,2]
[378516508,1754891432421,-2579.40996739,0.0001685,2]
[378516510,1754891432432,-29215.2,0.0001685,2]
[378516511,1754891432484,-4600.0,0.0001685,2]
[378516512,1754891432495,-600.0,0.0001685,2]
[378516513,1754891432530,-627.68208494,0.0001685,2]
[378516514,1754891432541,-528.5143,0.0001685,2]
[378516515,1754891432552,-276.0,0.0001685,2]
[378516516,1754891432563,-6305.16097077,0.0001685,2]
[378516517,1754891432574,-5258.0,0.0001685,2]
[378516518,1754891432637,-967.46710768,0.0001685,2]
[378516519,1754891432648,-3795.48413388,0.0001685,2]
[378516520,1754891432706,-272.47,0.0001685,2]
[378516521,1754891432717,-15844.75772976,0.0001685,2]
[378516522,1754891432728,-1433.32649533,0.0001685,2]
[378516523,1754891432752,-905.7,0.0001685,2]
[378516524,1754891432763,-1636.27334709,0.0001685,2]
[378516657,1754891438135,-64223.73271602,0.0001685,2]
[378516658,1754891438147,-1247.05674392,0.0001685,2]
[378516659,1754891438158,-1916.87577182,0.0001685,2]
[378516660,1754891438193,-787.36629238,0.0001685,2]
[378516661,1754891438205,-1530.12276538,0.0001685,2]
[378516662,1754891438251,-1142.76297594,0.0001685,2]
[378516663,1754891438263,-8393.59626765,0.0001685,2]
[378516664,1754891438272,-5915.31226626,0.00016851,2]
[378516665,1754891438422,-40214.72014294,0.00016851,2]
[378516666,1754891438432,-567.28,0.00016852,2]
[378516667,1754891438442,-250.0,0.00016869,2]
[378516668,1754891438453,-1000.0,0.00016873,5]
[378516669,1754891438467,-2500.0,0.00016873,2]
[378516670,1754891438477,-1000.0,0.00016895,5]
[378516671,1754891438488,-560.67827743,0.0001694,2]
[378516672,1754891438497,-2751.0,0.00016969,2]
[378516673,1754891438507,-161.82,0.00017098,2]
[378516674,1754891438517,-2396.62,0.00017132,2]
[378516675,1754891438526,-299.40112017,0.000175,2]
[378516676,1754891438535,-5000.6012539,0.00017736,2]
[378516677,1754891438545,-494.1,0.00017749,2]
[378516678,1754891438554,-9034.21,0.00017749,5]
[378516679,1754891438568,-499.99,0.00017749,2]
[378516680,1754891438582,-9999.99,0.00017749,2]
[378516681,1754891438591,-9999.99,0.00017749,2]
[378516682,1754891438601,-339.51,0.00017749,2]
[378516683,1754891438610,-3668.24,0.00017749,2]
[378516684,1754891438620,-4881.69,0.00017749,2]
[378516685,1754891438630,-150.99,0.00017749,2]
[378516686,1754891438639,-150.99,0.00017749,2]
[378516688,1754891438649,-8253.99,0.00017749,2]
[378516690,1754891438660,-299.99,0.00017749,4]
[378516692,1754891438669,-19187.93,0.00017749,2]
[378516694,1754891438679,-999.99,0.00017749,2]
[378516696,1754891438689,-9999.99,0.00017749,2]
[378516698,1754891438699,-1507.71,0.00017749,2]
[378516701,1754891438709,-773.98974564,0.00017794,2]
[378516703,1754891438719,-150.0,0.00017795,2]
[378516705,1754891438728,-7436.48,0.00017798,2]
[378516707,1754891438738,-231.28369723,0.00017798,2]
[378516709,1754891438748,-12833.7,0.00017809,2]
[378516711,1754891438758,-46130.0324092,0.00017854,2]
[378516713,1754891438768,-10258.94,0.00017858,2]
[378516715,1754891438778,-1000.0,0.00017882,2]
[378516717,1754891438788,-168.0,0.00017888,2]
[378516719,1754891438798,-168.0,0.00017897,2]
[378516721,1754891438807,-334.32049817,0.00017915,2]
[378516723,1754891438818,-203.55279596,0.00017915,2]
[378516725,1754891438828,-441.0,0.00017961,2]
[378516727,1754891438838,-200.0,0.00017977,2]
[378516729,1754891438849,-8577.05,0.00017977,2]
[378516731,1754891438859,-320.77811438,0.00017996,2]
[378516733,1754891438869,-250.0,0.00017996,2]
[378516736,1754891438879,-250.0,0.00017996,2]
[378516738,1754891438888,-250.0,0.00017996,2]
[378516740,1754891438898,-250.0,0.00017996,2]
[378516742,1754891438908,-1199.20597015,0.00017996,2]
[378516744,1754891438918,-202.38327064,0.00017996,2]
[378516746,1754891438928,-282748.1556949,0.00018007,2]
[378516748,1754891438938,-388.57,0.00018009,2]
[378516750,1754891438947,-600.0,0.00018013,2]
[378516752,1754891438958,-474.77773835,0.00018015,2]
[378516754,1754891438969,-168.0,0.00018021,2]
[378516756,1754891438978,-216.0,0.00018032,2]
[378516758,1754891438988,-500.0,0.00018051,2]
[378516760,1754891438998,-501.34567089,0.00018073,2]
[378516761,1754891439008,-500.0,0.00018073,2]
[378516762,1754891439020,-500.0,0.00018073,2]
[378516763,1754891439029,-342.60425664,0.00018073,2]
[378516764,1754891439039,-500.0,0.00018073,2]
[378516765,1754891439048,-502.628276,0.00018073,2]
[378516766,1754891439062,-500.0,0.00018073,2]
[378516767,1754891439072,-168.0,0.00018216,2]
[378516768,1754891439081,-183.35,0.0001828,2]
[378516769,1754891439094,-183.35,0.00018289,2]
[378516770,1754891439110,-260.679447,0.00018298,2]
[378516771,1754891439125,-260.679447,0.00018298,2]
[378516772,1754891439138,-158.83383,0.00018298,2]
[378516773,1754891439148,-158.83383,0.00018298,2]
[378516774,1754891439159,-183.35,0.00018299,2]
[378516775,1754891439168,-183.35,0.00018308,2]
[378516776,1754891439178,-183.35,0.00018318,2]
[378516777,1754891439188,-168.0,0.00018319,2]
[378516778,1754891439199,-183.35,0.00018328,2]
[378516779,1754891439209,-168.0,0.00018329,2]
[378516780,1754891439219,-216.0,0.0001833,2]
[378516781,1754891439234,-183.35,0.00018337,2]
[378516782,1754891439247,-183.35,0.00018347,2]
[378516783,1754891439257,-183.35,0.00018357,2]
[378516784,1754891439267,-1117.43238757,0.00018365,2]
[378516785,1754891439277,-183.35,0.00018366,2]
[378516786,1754891439287,-183.35,0.00018376,2]
[378516787,1754891439297,-168.0,0.0001838,2]
[378516788,1754891439307,-183.35,0.00018385,2]
[378516789,1754891439317,-183.35,0.00018395,2]
[378516790,1754891439327,-226.6,0.00018402,2]
[378516791,1754891439336,-183.35,0.00018405,2]
[378516792,1754891439346,-183.35,0.00018414,2]
[378516793,1754891439356,-1000.0,0.00018423,2]
[378516794,1754891439366,-183.35,0.00018424,2]
[378516795,1754891439376,-230.6053,0.00018433,2]
[378516796,1754891439386,-3167.8494,0.00018433,2]
[378516797,1754891439396,-183.35,0.00018433,2]
[378516798,1754891439406,-183.35,0.00018443,2]
[378516799,1754891439416,-183.35,0.00018453,2]
[378516800,1754891439426,-183.35,0.00018462,2]
[378516801,1754891439436,-1680.0,0.00018497,2]
[378516802,1754891439446,-168.97,0.00018504,2]
[378516803,1754891439456,-216.0,0.00018528,2]
[378516804,1754891439465,-1168.25,0.00018533,2]
[378516805,1754891439475,-2500.0,0.00018534,2]
[378516806,1754891439485,-1000.0,0.00018535,5]
[378516807,1754891439495,-300.0,0.00018535,2]
[378516808,1754891439504,-1000.0,0.00018535,5]
[378516809,1754891439514,-300.0,0.00018535,2]
[378516810,1754891439524,-2500.0,0.00018535,2]
[378516811,1754891439534,-1000.0,0.00018535,5]
[378516812,1754891439544,-300.0,0.00018535,2]
[378516813,1754891439554,-300.0,0.00018535,2]
[378516814,1754891439564,-311.45614637,0.0001862,2]
[378516815,1754891439574,-1000.0,0.00018621,2]
[378516816,1754891439584,-1006.67658515,0.00018621,2]
[378516817,1754891439593,-270.32910114,0.00018621,2]
[378516818,1754891439604,-216.0,0.00018651,2]
[378516819,1754891439614,-216.0,0.00018826,2]
[378516820,1754891439623,-46130.0324092,0.00018858,2]
[378516821,1754891439633,-1000.0,0.000189,2]
[378516822,1754891439643,-972.3602,0.000189,2]
[378516823,1754891439652,-235.030308,0.00018904,2]
[378516824,1754891439662,-235.030308,0.00018904,2]
[378516825,1754891439676,-260.679447,0.00018904,2]
[378516826,1754891439686,-285.25996,0.00018904,2]
[378516827,1754891439697,-260.679447,0.00018904,2]
[378516828,1754891439708,-285.25996,0.00018904,2]
[378516829,1754891439718,-158.83383,0.00018904,2]
[378516830,1754891439728,-158.83383,0.00018904,2]
[378516831,1754891439738,-312.145439,0.00018904,2]
[378516832,1754891439748,-354.007611,0.00018904,2]
[378516833,1754891439758,-354.007611,0.00018904,2]
[378516834,1754891439768,-151.0,0.00018904,2]
[378516835,1754891439779,-151.0,0.00018904,2]
[378516836,1754891439788,-211.73953792,0.00018938,2]
[378516837,1754891439798,-53674.87632745,0.00018943,2]
[378516838,1754891439808,-493.520464,0.00018944,2]
[378516839,1754891439819,-15230.29024517,0.00018944,2]
[378516840,1754891439829,-14183.82443706,0.00018944,2]
[378516841,1754891439839,-7176.58787088,0.00018944,2]
[378516842,1754891439850,-493.520464,0.00018945,2]
[378516843,1754891439860,-8201.02706521,0.00018945,2]
[378516844,1754891439870,-7176.58787088,0.00018946,2]
[378516845,1754891439880,-4063.47495237,0.00018946,2]
[378516846,1754891439890,-15230.29024517,0.00018947,2]
[378516847,1754891439900,-28279.31221185,0.00018947,2]
[378516848,1754891439911,-214699.50530966,0.00018948,2]
[378516849,1754891439923,-493.52046376,0.00018948,2]
[378516850,1754891439933,-493.52046376,0.00018949,2]
[378516851,1754891439943,-8201.02706521,0.0001895,2]
[378516852,1754891439953,-28279.31221185,0.00018951,2]
[378516853,1754891439962,-493.520464,0.00018953,2]
[378516854,1754891439972,-14183.82443706,0.00018953,2]
[378516855,1754891439982,-214699.50530966,0.00018954,2]
[378516856,1754891439991,-53674.87632745,0.00018955,2]
[378516857,1754891440002,-1831.19655665,0.00018956,2]
[378516858,1754891440012,-15230.29024517,0.00018956,2]
[378516859,1754891440024,-246.76023197,0.00018959,2]
[378516860,1754891440034,-28279.31221185,0.00018961,2]
[378516861,1754891440044,-14183.82443706,0.00018962,2]
[378516863,1754891440054,-14183.82443706,0.00018965,2]
[378516865,1754891440066,-8201.02706521,0.00018965,2]
[378516866,1754891440076,-15230.29024517,0.00018966,2]
[378516867,1754891440086,-8201.02706521,0.00018967,2]
[378516868,1754891440097,-493.520464,0.00018967,2]
[378516869,1754891440107,-28279.31221185,0.00018968,2]
[378516870,1754891440118,-246.76023197,0.00018968,2]
[378516871,1754891440129,-1831.19655665,0.00018968,2]
[378516872,1754891440139,-28279.31221185,0.0001897,2]
[378516874,1754891440149,-53674.87632745,0.0001897,2]
[378516875,1754891440159,-160.0,0.0001897,2]
[378516876,1754891440169,-457.87080987,0.0001897,2]
[378516877,1754891440179,-842.86497659,0.0001897,2]
[378516878,1754891440189,-246.76023197,0.00018971,2]
[378516879,1754891440199,-53674.87632745,0.00018971,2]
[378516880,1754891440212,-4063.47495237,0.00018973,2]
[378516881,1754891440222,-14183.82443706,0.00018974,2]
[378516882,1754891440233,-12301.5405978,0.00018974,2]
[378516883,1754891440243,-28279.31221185,0.00018977,2]
[378516884,1754891440253,-246.76023197,0.00018978,2]
[378516885,1754891440263,-28279.31221185,0.00018979,2]
[378516886,1754891440273,-493.52046376,0.00018979,2]
[378516887,1754891440284,-7176.58787088,0.00018981,2]
[378516888,1754891440294,-12301.5405978,0.00018982,2]
[378516889,1754891440304,-493.52046376,0.00018983,2]
[378516890,1754891440315,-1831.19655665,0.00018983,2]
[378516891,1754891440325,-4063.47495237,0.00018985,2]
[378516892,1754891440335,-493.520464,0.00018986,2]
[378516893,1754891440345,-246.76023197,0.00018987,2]
[378516894,1754891440355,-1831.19655665,0.00018988,2]
[378516895,1754891440366,-214699.50530966,0.00018988,2]
[378516896,1754891440378,-214699.50530966,0.00018988,2]
[378516897,1754891440388,-7176.58787088,0.00018988,2]
[378516898,1754891440397,-12301.5405978,0.00018989,2]
[378516899,1754891440408,-8201.02706521,0.00018989,2]
[378516900,1754891440419,-493.52046376,0.0001899,2]
[378516901,1754891440432,-7176.58787088,0.00018992,2]
[378516902,1754891440443,-214699.50530966,0.00018992,2]
[378516903,1754891440453,-1831.19655665,0.00018992,2]
[378516904,1754891440467,-15230.29024517,0.00018992,2]
[378516905,1754891440477,-28279.31221185,0.00018993,2]
[378516906,1754891440487,-28279.31221185,0.00018994,2]
[378516907,1754891440497,-12301.5405978,0.00018994,2]
[378516908,1754891440509,-4063.47495237,0.00018995,2]
[378516909,1754891440520,-53674.87632745,0.00018997,2]
[378516910,1754891440962,-4063.47495237,0.00018998,2]
[378516911,1754891440995,-12301.5405978,0.00018998,2]
[378516912,1754891441006,-1000.0,0.00018999,2]
[378516913,1754891441018,-1000.0,0.00018999,2]
[378516914,1754891441027,-1000.0,0.00018999,2]
[378516915,1754891441037,-28279.31221185,0.00018999,2]
[378516916,1754891441047,-151.0,0.00019,2]
[378516917,1754891441058,-2999.98,0.00019,2]
[378516918,1754891441068,-150.64,0.00019,2]
[378516919,1754891441078,-151.49,0.00019,2]
[378516920,1754891441087,-303.93,0.00019,2]
[378516921,1754891441098,-219.829089,0.00019,2]
[378516922,1754891441108,-219.829089,0.00019,2]
[378516923,1754891441118,-196.029025,0.00019,2]
[378516924,1754891441128,-196.029025,0.00019,2]
[378516925,1754891441137,-189.246881,0.00019,2]
[378516926,1754891441148,-189.246881,0.00019,2]
[378516927,1754891441158,-151.0,0.00019,2]
[378516928,1754891441167,-3002.8,0.00019,2]
[378516929,1754891441177,-3000.0,0.00019,2]
[378516930,1754891441187,-737.2,0.00019,2]
[378516931,1754891441196,-3121.14,0.00019,2]
[378516932,1754891441205,-169.62533804,0.00019067,2]
[378516933,1754891441215,-700.0,0.00019129,2]
[378516934,1754891441224,-700.0,0.00019129,2]
[378516935,1754891441233,-700.0,0.00019129,2]
[378516936,1754891441243,-700.0,0.00019129,2]
[378516937,1754891441253,-700.0,0.00019129,2]
[378516938,1754891441262,-700.0,0.00019129,2]
[378516939,1754891441272,-700.0,0.00019129,2]
[378516940,1754891441281,-700.0,0.00019129,2]
[378516941,1754891441291,-700.0,0.00019141,2]
[378516942,1754891441301,-700.0,0.00019141,2]
[378516943,1754891441310,-700.0,0.00019141,2]
[378516944,1754891441320,-700.0,0.00019141,2]
[378516945,1754891441330,-700.0,0.00019141,2]
[378516946,1754891441339,-700.0,0.00019141,2]
[378516947,1754891441348,-700.0,0.00019141,2]
[378516948,1754891441358,-700.0,0.00019141,2]
[378516949,1754891441367,-700.0,0.00019141,2]
[378516950,1754891441377,-700.0,0.00019141,2]
[378516951,1754891441386,-700.0,0.00019141,2]
[378516952,1754891441396,-700.0,0.00019141,2]
[378516953,1754891441406,-700.0,0.00019141,2]
[378516954,1754891441415,-700.0,0.00019141,2]
[378516955,1754891441427,-700.0,0.00019141,2]
[378516956,1754891441436,-700.0,0.00019141,2]
[378516957,1754891441445,-282748.1556949,0.00019163,2]
[378516958,1754891441455,-239.84119403,0.00019167,2]
[378516959,1754891441465,-1500.0,0.00019168,2]
[378516960,1754891441475,-500.0,0.00019173,2]
[378516961,1754891441484,-500.0,0.00019173,2]
[378516962,1754891441494,-500.0,0.00019173,2]
[378516963,1754891441503,-500.0,0.00019173,2]
[378516964,1754891441512,-500.0,0.00019173,2]
[378516965,1754891441521,-500.0,0.00019173,2]
[378516966,1754891441531,-500.0,0.00019178,2]
[378516967,1754891441541,-621.80459638,0.00019178,2]
[378516968,1754891441550,-4016.72,0.00019178,2]
[378516969,1754891441560,-168.0,0.00019179,2]
[378516970,1754891441569,-216.0,0.00019233,2]
[378516971,1754891441579,-168.0,0.00019256,2]
[378516972,1754891441588,-334.3204981,0.00019262,2]
[378516973,1754891441597,-226.6,0.00019264,2]
[378516974,1754891441607,-168.0,0.00019314,2]
[378516975,1754891441616,-216.0,0.00019327,2]
[378516976,1754891441626,-1243.57659104,0.00019365,2]
[378516977,1754891441636,-168.0,0.00019379,2]
[378516978,1754891441645,-168.0,0.00019441,2]
[378516979,1754891441655,-216.0,0.00019476,2]
[378516980,1754891441664,-168.0,0.00019497,2]
[378516981,1754891441674,-218.69318673,0.00019507,3]
[378516982,1754891441687,-1253.0,0.00019598,2]
[378516983,1754891441696,-3367.0,0.00019598,2]
[378516984,1754891441706,-957.0,0.00019598,2]
[378516985,1754891441715,-810.0,0.00019598,2]
[378516986,1754891441725,-958.0,0.00019598,2]
[378516987,1754891441734,-659.309,0.00019598,2]
[378516988,1754891441743,-565.0,0.00019598,2]
[378516989,1754891441753,-2027.0,0.00019598,2]
[378516990,1754891441762,-1295.0,0.00019598,2]
[378516991,1754891441772,-1171.0,0.00019598,2]
[378516992,1754891441781,-893.0,0.00019598,2]
[378516993,1754891441791,-1654.0,0.00019598,2]
[378516994,1754891441801,-6082.0,0.00019598,2]
[378516995,1754891441811,-4145.0,0.00019598,2]
[378516996,1754891441820,-21461.0,0.00019598,2]
[378516997,1754891441829,-298.03,0.00019629,2]
[378516998,1754891441839,-169.62533804,0.00019658,2]
[378516999,1754891441848,-216.0,0.00019666,2]
[378517000,1754891441860,-581.15254429,0.00019716,2]
[378517001,1754891441869,-1000.0,0.00019721,2]
[378517002,1754891441879,-671.18616283,0.00019721,2]
[378517003,1754891441888,-1000.0,0.00019721,2]
[378517004,1754891441897,-1000.0,0.00019721,2]
[378517005,1754891441907,-1000.0,0.00019721,2]
[378517006,1754891441916,-168.0,0.00019721,2]
[378517007,1754891441926,-235.030308,0.00019726,2]
[378517008,1754891441935,-235.030308,0.00019726,2]
[378517009,1754891441944,-260.679447,0.00019726,2]
[378517010,1754891441954,-285.25996,0.00019726,2]
[378517011,1754891441964,-260.679447,0.00019726,2]
[378517012,1754891441977,-285.25996,0.00019726,2]
[378517013,1754891441990,-158.83383,0.00019726,2]
[378517014,1754891442000,-158.83383,0.00019726,2]
[378517015,1754891442009,-312.145439,0.00019726,2]
[378517016,1754891442023,-354.007611,0.00019726,2]
[378517017,1754891442032,-354.007611,0.00019726,2]
[378517018,1754891442041,-151.0,0.00019726,2]
[378517019,1754891442051,-151.0,0.00019726,2]
[378517020,1754891442062,-168.0,0.00019729,2]
[378517021,1754891442071,-216.0,0.00019739,2]
[378517022,1754891442081,-2500.0,0.00019749,2]
[378517023,1754891442091,-46130.0324092,0.00019861,2]
[378517024,1754891442100,-285.52,0.00019863,2]
[378517025,1754891442110,-5181.7541,0.00019899,2]
[378517026,1754891442119,-494.1,0.00019967,2]
[378517027,1754891442128,-200.0,0.00019981,2]
[378517028,1754891442137,-1000.0,0.00019999,2]
[378517029,1754891442147,-151.484717,0.0002,2]
[378517030,1754891442157,-219.829089,0.0002,2]
[378517031,1754891442167,-219.829089,0.0002,2]
[378517032,1754891442176,-196.029025,0.0002,2]
[378517033,1754891442186,-196.029025,0.0002,2]
[378517034,1754891442196,-189.246881,0.0002,2]
[378517035,1754891442205,-189.246881,0.0002,2]
[378517036,1754891442215,-151.0,0.0002,2]
[378517037,1754891442225,-470.61959841,0.0002,2]
[378517038,1754891442234,-7140.97052184,0.0002,5]
[378517039,1754891442243,-305.59,0.0002,2]
[378517040,1754891442254,-5000.0,0.00020013,2]
[378517041,1754891442265,-5000.0,0.00020036,2]
[378517042,1754891442274,-150.62,0.00020063,2]
[378517043,1754891442284,-150.0,0.00020072,2]
[378517044,1754891442293,-388.57,0.00020083,2]
[378517045,1754891442303,-202.0,0.000201,2]
[378517046,1754891442312,-600.0,0.00020104,2]
[378517047,1754891442322,-1000.0,0.00020118,2]
[378517048,1754891442331,-226.6,0.00020127,2]
[378517049,1754891442341,-150.91,0.00020155,2]
[378517050,1754891442350,-25000.0,0.0002017,2]
[378517051,1754891442360,-260.679447,0.00020181,2]
[378517052,1754891442369,-260.679447,0.00020181,2]
[378517053,1754891442378,-158.83383,0.00020181,2]
[378517054,1754891442388,-158.83383,0.00020181,2]
[378517055,1754891442397,-25000.0,0.00020187,2]
[378517056,1754891442406,-321.9,0.00020187,2]
[378517057,1754891442416,-5000.0,0.0002019,2]
[378517058,1754891442426,-2500.77,0.0002022,2]
[378517059,1754891442435,-1313.77,0.00020247,2]
[378517060,1754891442445,-169.62533804,0.00020249,2]
[378517061,1754891442454,-198.58341486,0.00020268,2]
[378517062,1754891442463,-504.36534835,0.00020268,2]
[378517063,1754891442472,-1500.0,0.00020268,2]
[378517064,1754891442482,-5000.0,0.0002027,2]
[378517065,1754891442492,-273.33,0.00020279,2]
[378517066,1754891442501,-235.030308,0.00020287,2]
[378517067,1754891442510,-235.030308,0.00020287,2]
[378517068,1754891442520,-285.25996,0.00020287,2]
[378517069,1754891442529,-285.25996,0.00020287,2]
[378517070,1754891442539,-312.145439,0.00020287,2]
[378517071,1754891442549,-354.007611,0.00020287,2]
[378517072,1754891442558,-354.007611,0.00020287,2]
[378517073,1754891442567,-151.0,0.00020287,2]
[378517074,1754891442576,-151.0,0.00020287,2]
[378517075,1754891442585,-2351.0,0.00020307,2]
[378517076,1754891442595,-2270.87,0.00020308,2]
[378517077,1754891442604,-151.99,0.0002031,2]
[378517078,1754891442613,-151.99,0.0002031,2]
[378517079,1754891442622,-151.99,0.0002031,2]
[378517080,1754891442632,-282748.1556949,0.0002032,2]
[378517081,1754891442642,-5000.0,0.00020349,2]
[378517082,1754891442651,-1018.85,0.00020393,2]
[378517083,1754891442662,-5000.0,0.00020435,2]
[378517084,1754891442671,-150.0,0.00020447,2]
[378517085,1754891442682,-219.829089,0.00020455,2]
[378517086,1754891442691,-219.829089,0.00020455,2]
[378517087,1754891442702,-196.029025,0.00020455,2]
[378517088,1754891442714,-196.029025,0.00020455,2]
[378517089,1754891442723,-189.246881,0.00020455,2]
[378517090,1754891442733,-189.246881,0.00020455,2]
[378517091,1754891442743,-151.0,0.00020455,2]
[378517092,1754891442752,-4433.38,0.00020497,2]
[378517093,1754891442761,-5000.0,0.00020509,2]
[378517094,1754891442771,-5000.0,0.00020514,2]
[378517095,1754891442781,-248.71531821,0.00020536,2]
[378517096,1754891442791,-209.57,0.0002054,2]
[378517097,1754891442800,-151.99,0.0002054,2]
[378517098,1754891442809,-325.37,0.00020546,2]
[378517099,1754891442818,-21010.22,0.00020548,2]
[378517100,1754891442827,-25000.0,0.0002055,2]
[378517101,1754891442837,-5000.0,0.00020553,2]
[378517102,1754891442846,-199.41,0.00020589,2]
[378517103,1754891442856,-334.3204981,0.00020609,2]
[378517104,1754891442865,-4016.72,0.0002062,2]
[378517105,1754891442874,-2468.26,0.00020669,2]
[378517106,1754891442884,-1289.58892491,0.00020734,2]
[378517107,1754891442893,-2500.77,0.00020734,2]
[378517108,1754891442902,-9253.5,0.00020794,2]
[378517109,1754891442912,-2000.0,0.00020816,2]
[378517110,1754891442921,-3266.0481347,0.00020863,2]
[378517111,1754891442930,-500.0,0.00020868,2]
[378517112,1754891442939,-2041.68,0.000209,2]
[378517113,1754891442949,-2041.68,0.000209,2]
[378517114,1754891442958,-1897.56,0.000209,2]
[378517115,1754891442967,-1897.56,0.000209,2]
[378517117,1754891442977,-270.68,0.000209,2]